bitfinex/quotes_BTCUSD_20250212
["timestamp","ask_amount","ask_price","bid_price","bid_amount"]
[1739319373359,0.52471376,96106.0,96105.0,0.00238687]
[1739319373638,0.52471376,96106.0,96105.0,0.00138687]
[1739319373802,0.15,96105.0,96104.0,0.30022365]
[1739319374167,0.306079,96105.0,96104.0,0.30022365]
[1739319375513,0.307079,96105.0,96104.0,0.30022365]
[1739319375754,0.32338911,96105.0,96104.0,0.30022365]
[1739319375987,0.32838911,96105.0,96104.0,0.30022365]
[1739319376463,0.32338911,96105.0,96104.0,0.30022365]
[1739319376695,0.32738911,96105.0,96104.0,0.30022365]
[1739319376928,0.32638911,96105.0,96104.0,0.30022365]
[1739319377380,0.32938911,96105.0,96104.0,0.30022365]
[1739319383742,0.89967111,96105.0,96104.0,0.30022365]
[1739319386903,0.89667111,96105.0,96104.0,0.30022365]
[1739319387368,0.89967111,96105.0,96104.0,0.30022365]
[1739319387542,0.89967111,96105.0,96104.0,0.29564825]
[1739319387744,0.89567111,96105.0,96104.0,0.29564825]
[1739319388134,0.89967111,96105.0,96104.0,0.29564825]
[1739319388354,0.89977771,96105.0,96104.0,0.29564825]
[1739319389338,0.89577771,96105.0,96104.0,0.29564825]
[1739319389575,0.89677771,96105.0,96104.0,0.29564825]
[1739319390001,0.89977771,96105.0,96104.0,0.29564825]
[1739319390387,0.88977771,96105.0,96104.0,0.29564825]
[1739319390531,0.89977771,96105.0,96104.0,0.29564825]
[1739319390727,0.88977771,96105.0,96104.0,0.28939341]
[1739319390954,0.89977771,96105.0,96104.0,0.28939341]
[1739319391161,0.89677771,96105.0,96104.0,0.28939341]
[1739319391365,0.89277771,96105.0,96104.0,0.28939341]
[1739319391560,0.89577771,96105.0,96104.0,0.28939341]
[1739319391799,0.89977771,96105.0,96104.0,0.28939341]
[1739319392252,0.89577771,96105.0,96104.0,0.28939341]
[1739319392601,0.89977771,96105.0,96104.0,0.28939341]
[1739319392951,0.306097,96094.0,96093.0,0.00022386]
[1739319393150,0.30611,96086.0,96085.0,0.0458]
[1739319394612,0.30611,96086.0,96085.0,0.0468]
[1739319395534,0.30611,96086.0,96085.0,0.0528]
[1739319396058,0.30611,96086.0,96085.0,0.007]
[1739319396673,0.30611,96086.0,96085.0,0.132]
[1739319396852,0.30611,96086.0,96085.0,0.131]
[1739319397253,0.30611,96086.0,96085.0,0.132]
[1739319397601,0.32242259,96086.0,96085.0,0.126]
[1739319398007,0.32242259,96086.0,96085.0,0.132]
[1739319400502,0.32242259,96086.0,96085.0,0.13222386]
[1739319400731,0.34363123,96086.0,96085.0,0.13222386]
[1739319401347,0.37676485,96086.0,96085.0,0.12622386]
[1739319401697,0.37876485,96086.0,96085.0,0.12622386]
[1739319402086,0.37876485,96086.0,96085.0,0.12522386]
[1739319402513,0.38076485,96086.0,96085.0,0.12522386]
[1739319403034,0.38076485,96086.0,96085.0,0.00022386]
[1739319409797,0.15,96069.0,96066.0,0.0461]
[1739319410003,0.15,96069.0,96066.0,0.03311685]
[1739319410004,0.306141,96067.0,96066.0,0.03311685]
[1739319410451,0.306147,96063.0,96062.0,0.00022365]
[1739319410650,0.306158,96056.0,96041.0,0.00022365]
[1739319411118,0.156173,96047.0,96041.0,0.00022365]
[1739319412948,0.156173,96047.0,96046.0,0.12542365]
[1739319413460,0.157173,96047.0,96046.0,0.14042365]
[1739319413627,0.157173,96047.0,96046.0,0.14542365]
[1739319416339,0.19111902,96047.0,96046.0,0.14542365]
[1739319417074,0.19011902,96047.0,96046.0,0.13042365]
[1739319417452,0.19111902,96047.0,96046.0,0.14242365]
[1739319417748,0.19111902,96047.0,96046.0,0.13042365]
[1739319417911,0.19011902,96047.0,96046.0,0.13042365]
[1739319418975,0.19011902,96047.0,96046.0,0.12542365]
[1739319419308,0.19111902,96047.0,96046.0,0.14042365]
[1739319421534,0.19111902,96047.0,96046.0,0.06132365]
[1739319434506,0.34111902,96047.0,96046.0,0.06132365]
[1739319435471,0.34011902,96047.0,96046.0,0.04932365]
[1739319435707,0.34011902,96047.0,96046.0,0.00722365]
[1739319436821,0.34011902,96047.0,96046.0,0.00022365]
[1739319437027,0.34011902,96047.0,96046.0,0.00422365]
[1739319437856,0.35643764,96047.0,96046.0,0.00422365]
[1739319439098,0.156202,96029.0,96028.0,0.00022386]
[1739319439299,0.412785,96029.0,96028.0,0.00022386]
[1739319439516,0.816362,96029.0,96028.0,0.00022386]
[1739319439746,0.991248,96029.0,96028.0,0.00022386]
[1739319439963,0.85386882,96029.0,96028.0,0.00022386]
[1739319440178,0.84256182,96029.0,96028.0,0.00022386]
[1739319440397,0.85256182,96029.0,96028.0,0.00022386]
[1739319441297,0.15,96028.0,96011.0,0.06456197]
[1739319441573,0.30623,96012.0,96011.0,0.06456197]
[1739319442317,0.3225543,96012.0,96011.0,0.06456197]
[1739319442542,0.3225543,96012.0,95990.0,0.3213]
[1739319442543,0.156235,96009.0,95990.0,0.3213]
[1739319442722,0.156235,96009.0,96008.0,0.00066727]
[1739319442932,0.306235,96009.0,96008.0,0.00066727]
[1739319444693,0.306235,96009.0,96008.0,0.00166727]
[1739319445129,0.306235,96009.0,96008.0,0.00066727]
[1739319445990,0.306235,96009.0,96008.0,0.00166727]
[1739319447405,0.32256124,96009.0,96008.0,0.00166727]
[1739319448219,0.34378436,96009.0,96008.0,0.00166727]
[1739319449164,1.02544036,96009.0,96008.0,0.00166727]
[1739319449372,2.62416536,96009.0,96008.0,0.00166727]
[1739319449588,0.15,95996.0,95989.0,0.08333811]
[1739319449762,0.15,95996.0,95989.0,0.08347101]
[1739319449972,0.306266,95990.0,95989.0,0.08347101]
[1739319450191,0.306266,95990.0,95989.0,0.0001329]
[1739319451384,0.306266,95990.0,95989.0,0.0021329]
[1739319452319,0.32662065,95990.0,95989.0,0.0021329]
[1739319454302,0.32662065,95990.0,95989.0,0.0001329]
[1739319454745,0.32662065,95990.0,95989.0,0.0011329]
[1739319456013,0.02035465,95990.0,95989.0,0.0011329]
[1739319456619,0.17662065,95990.0,95989.0,0.0011329]
[1739319460075,0.01632859,95995.0,95989.0,0.0802329]
[1739319460281,0.156263,95992.0,95991.0,0.0791]
[1739319460918,0.156248,96001.0,95995.0,0.156257]
[1739319461164,0.20832,96006.0,95997.0,0.0791]
[1739319461332,0.156251,96000.0,95997.0,0.0791]
[1739319461546,0.156246,96002.0,95997.0,0.0791]
[1739319461905,0.208322,96005.0,95999.0,0.0791]
[1739319462293,0.00022408,96007.0,96006.0,0.23534]
[1739319462503,0.00022408,96007.0,96006.0,0.22940365]
[1739319463211,0.00022408,96007.0,96006.0,0.22740365]
[1739319463828,0.00122408,96007.0,96006.0,0.24340365]
[1739319464219,0.00022408,96007.0,96006.0,0.1249]
[1739319464473,0.15646208,96007.0,96006.0,0.1289]
[1739319464602,0.15746208,96007.0,96006.0,0.1399]
[1739319465659,0.15646208,96007.0,96006.0,0.1249]
[1739319465862,0.15646208,96007.0,96006.0,0.1289]
[1739319466065,0.15746208,96007.0,96006.0,0.1409]
[1739319466267,0.15746208,96007.0,96006.0,0.1369]
[1739319466469,0.15646208,96007.0,96006.0,0.1289]
[1739319466672,0.18543449,96007.0,96006.0,0.1289]
[1739319466913,0.15746208,96007.0,96006.0,0.1369]
[1739319467313,0.15646208,96007.0,96006.0,0.1249]
[1739319467510,0.15646208,96007.0,96006.0,0.1369]
[1739319467716,0.15746208,96007.0,96006.0,0.1419]
[1739319467937,0.00122408,96007.0,96006.0,0.24440365]
[1739319468139,0.00122408,96007.0,96006.0,0.40064365]
[1739319469086,0.00122408,96007.0,96006.0,0.73994365]
[1739319469416,0.00122408,96007.0,96006.0,0.74394365]
[1739319469794,0.00122408,96007.0,96006.0,0.73994365]
[1739319470029,0.01632298,96033.0,96006.0,1.12260365]
[1739319470234,0.156198,96032.0,96022.0,0.208283]
[1739319470418,0.156201,96030.0,96024.0,0.0791]
[1739319470640,0.156201,96030.0,96025.0,0.10250365]
[1739319470843,0.01632298,96033.0,96025.0,0.10250365]
[1739319471046,0.17251898,96033.0,96026.0,0.204007]
[1739319471248,0.17251898,96033.0,96027.0,0.10250365]
[1739319471382,0.156197,96032.0,96027.0,0.10250365]
[1739319471586,0.156197,96032.0,96027.0,0.10263655]
[1739319471814,0.156199,96031.0,96027.0,0.10263655]
[1739319472522,0.208263,96032.0,96027.0,0.10263655]
[1739319472671,0.156199,96031.0,96027.0,0.10263655]
[1739319473194,0.17251998,96033.0,96027.0,0.10263655]
[1739319473418,0.01632298,96033.0,96028.0,0.0791]
[1739319473681,0.01632298,96033.0,96029.0,0.25870465]
[1739319473874,0.01632298,96033.0,96029.0,0.10250365]
[1739319474494,0.01632298,96033.0,96029.0,0.25870565]
[1739319474708,0.01632298,96033.0,96030.0,0.156201]
[1739319474916,0.01632298,96033.0,96031.0,0.58000165]
[1739319475122,0.0879259,96037.0,96036.0,0.156191]
[1739319475324,0.0879259,96037.0,96036.0,0.33579465]
[1739319476451,0.0879259,96037.0,96036.0,0.68009465]
[1739319476665,0.0899259,96037.0,96036.0,0.72609465]
[1739319476874,0.0899259,96037.0,96036.0,0.8285983]
[1739319479737,0.0899259,96037.0,96036.0,1.3634983]
[1739319481796,0.0899259,96037.0,96036.0,1.26099465]
[1739319483374,0.0496,96096.0,96061.0,0.15615]
[1739319483592,0.156141,96067.0,96061.0,0.55100365]
[1739319483770,0.156139,96068.0,96061.0,0.70715365]
[1739319483980,0.156141,96067.0,96061.0,0.55100365]
[1739319484610,0.156141,96067.0,96061.0,0.55113655]
[1739319484952,0.15637308,96062.0,96061.0,0.50903655]
[1739319485166,0.15637308,96062.0,96061.0,0.42893655]
[1739319485819,0.15637308,96062.0,96061.0,0.43093655]
[1739319488428,0.15637308,96062.0,96061.0,0.0071329]
[1739319488861,0.20074833,96062.0,96061.0,0.0071329]
[1739319490312,0.20074833,96062.0,96061.0,0.0021329]
[1739319490488,0.20074833,96062.0,96061.0,0.0071329]
[1739319491063,0.20074833,96062.0,96061.0,0.0021329]
[1739319491270,0.20074833,96062.0,96061.0,0.0071329]
[1739319491674,0.20074833,96062.0,96061.0,0.0051329]
[1739319491847,0.20074833,96062.0,96061.0,0.0071329]
[1739319496044,0.20074833,96062.0,96061.0,0.0021329]
[1739319496243,0.20074833,96062.0,96061.0,0.0001329]
[1739319497265,0.20074833,96062.0,96061.0,0.0031329]
[1739319497756,0.20074833,96062.0,96061.0,0.0001329]
[1739319498235,0.35074833,96062.0,96061.0,0.0001329]
[1739319498498,0.33443248,96062.0,96061.0,0.0001329]
[1739319498934,0.33443248,96062.0,96061.0,0.0011329]
[1739319499134,0.33443248,96062.0,96061.0,0.0001329]
[1739319501137,0.156176,96045.0,96044.0,0.08333811]
[1739319501363,0.306176,96045.0,96044.0,0.08344864]
[1739319501583,0.355876,96045.0,96044.0,0.08344864]
[1739319501839,0.355876,96045.0,96044.0,0.00011053]
[1739319502695,0.37319661,96045.0,96044.0,0.00011053]
[1739319502922,0.60866961,96045.0,96044.0,5.3e-07]
[1739319503063,0.60866961,96045.0,96007.0,0.0001067]
[1739319503064,0.156233,96010.0,96007.0,0.0001067]
[1739319503269,0.156233,96010.0,96008.0,0.08347108]
[1739319503697,0.156233,96010.0,96008.0,0.00013297]
[1739319504233,0.156233,96010.0,96008.0,0.01513297]
[1739319505873,0.156233,96010.0,96008.0,0.00513297]
[1739319506087,0.17255736,96010.0,96008.0,0.00013297]
[1739319506245,0.17255736,96010.0,96008.0,0.01113297]
[1739319506441,0.01632436,96010.0,96008.0,0.01513297]
[1739319506647,0.156235,96009.0,96008.0,0.00413297]
[1739319507053,0.306235,96009.0,96008.0,0.01613297]
[1739319507456,0.3314793,96009.0,96008.0,0.00413297]
[1739319507874,0.3324793,96009.0,96008.0,0.01713297]
[1739319508635,0.3324793,96009.0,96008.0,0.01313297]
[1739319508842,0.3324793,96009.0,96008.0,0.01823957]
[1739319509065,0.3314793,96009.0,96008.0,0.00523957]
[1739319509267,0.3314793,96009.0,96008.0,0.00023957]
[1739319509468,0.3364793,96009.0,96008.0,0.00323957]
[1739319509913,0.3364793,96009.0,96008.0,0.00023957]
[1739319510093,0.3404793,96009.0,96008.0,0.00023957]
[1739319510267,0.3484793,96009.0,96008.0,0.00123957]
[1739319510716,0.3404793,96009.0,96008.0,0.00023957]
[1739319511123,0.4263793,96009.0,96008.0,0.00123957]
[1739319511853,0.4173793,96009.0,96008.0,0.00123957]
[1739319512008,0.4213793,96009.0,96008.0,0.00123957]
[1739319512215,0.4213793,96009.0,96008.0,0.00023957]
[1739319512416,0.4083793,96009.0,96008.0,0.00023957]
[1739319512694,0.4203793,96009.0,96008.0,0.00123957]
[1739319514865,0.4163793,96009.0,96008.0,0.00123957]
[1739319515253,0.4193793,96009.0,96008.0,0.00123957]
[1739319515861,0.4193793,96009.0,96006.0,0.0001067]
[1739319515862,0.15,96008.0,96006.0,0.00010669]
[1739319516229,0.306238,96007.0,96006.0,0.00010669]
[1739319517372,1.212664,96007.0,96006.0,0.00010669]
[1739319517776,0.156266,95990.0,95989.0,0.0001067]
[1739319517992,0.306266,95990.0,95989.0,0.0001067]
[1739319518410,0.32259462,95990.0,95989.0,0.0001067]
[1739319519436,0.32259462,95990.0,95989.0,0.0021067]
[1739319519636,0.32259462,95990.0,95989.0,0.0081067]
[1739319519795,0.32259462,95990.0,95989.0,0.0061067]
[1739319519995,0.32259462,95990.0,95989.0,0.0001067]
[1739319520267,0.32759462,95990.0,95989.0,0.0001067]
[1739319520775,0.311266,95990.0,95989.0,0.0001067]
[1739319521200,0.313266,95990.0,95989.0,0.0001067]
[1739319521401,0.33465884,95990.0,95989.0,0.0001067]
[1739319521606,0.32765884,95990.0,95989.0,0.0001067]
[1739319521807,0.32965884,95990.0,95989.0,0.0001067]
[1739319521968,0.33365884,95990.0,95989.0,0.0001067]
[1739319522162,0.35876311,95990.0,95989.0,0.0001067]
[1739319522390,0.35676311,95990.0,95989.0,0.0001067]
[1739319522749,0.35976311,95990.0,95989.0,0.0001067]
[1739319523744,0.49979252,95990.0,95989.0,0.0001067]
[1739319523967,0.306293,95973.0,95972.0,0.3213]
[1739319525019,0.32262373,95973.0,95972.0,0.3213]
[1739319525258,0.32362373,95973.0,95972.0,0.33074393]
[1739319525478,0.30632,95957.0,95956.0,0.0801]
[1739319528141,0.30732,95957.0,95956.0,0.0861]
[1739319528296,0.30732,95957.0,95956.0,0.0891]
[1739319528493,0.30732,95957.0,95956.0,0.0861]
[1739319528894,0.30732,95957.0,95956.0,0.0891]
[1739319529516,0.30632,95957.0,95956.0,0.0831]
[1739319529718,0.347219,95957.0,95956.0,0.0801]
[1739319529922,0.348219,95957.0,95956.0,0.0871]
[1739319531027,0.16733354,95957.0,95956.0,0.0871]
[1739319531229,0.16633354,95957.0,95956.0,0.0831]
[1739319531471,0.16633354,95957.0,95956.0,0.18960365]
[1739319531671,0.16733354,95957.0,95956.0,0.34592465]
[1739319531875,0.151,95957.0,95956.0,0.39602465]
[1739319532091,0.15,95957.0,95956.0,0.38602465]
[1739319532467,0.151,95957.0,95956.0,0.39902465]
[1739319532680,0.151,95957.0,95956.0,0.23770365]
[1739319532897,0.15,95957.0,95956.0,0.22970365]
[1739319533107,0.15,95957.0,95956.0,0.24281035]
[1739319533291,0.151,95957.0,95956.0,0.24281035]
[1739319535920,0.151,95957.0,95956.0,0.43942528]
[1739319537764,0.30732,95957.0,95956.0,0.28982163]
[1739319537991,0.30732,95957.0,95956.0,0.20972163]
[1739319538221,0.32365326,95957.0,95956.0,0.20972163]
[1739319541064,0.30732,95957.0,95956.0,0.20972163]
[1739319541848,0.30732,95957.0,95956.0,0.0131067]
[1739319544000,0.32365407,95957.0,95956.0,0.0131067]
[1739319545241,0.32265407,95957.0,95956.0,0.0001067]
[1739319546405,0.32265407,95957.0,95956.0,0.0752067]
[1739319546605,0.30632,95957.0,95956.0,0.0752067]
[1739319547223,0.00022408,95972.0,95956.0,0.22601035]
[1739319547429,0.00022408,95972.0,95957.0,0.10354562]
[1739319547817,0.02483519,95972.0,95960.0,0.1035456]
[1739319547988,0.15,95968.0,95961.0,0.156312]
[1739319548150,0.2084,95969.0,95962.0,0.10250365]
[1739319548358,0.15,95970.0,95962.0,0.10250365]
[1739319548823,0.306298,95970.0,95962.0,0.10250365]
[1739319549513,0.32263027,95970.0,95962.0,0.10550365]
[1739319550366,0.001,95968.0,95962.0,0.10550365]
[1739319550724,0.01633227,95970.0,95962.0,0.10550365]
[1739319550930,0.01633227,95970.0,95964.0,0.023]
[1739319551134,0.01733227,95970.0,95966.0,0.023]
[1739319551328,0.01733227,95970.0,95967.0,0.10250365]
[1739319551775,0.01633227,95970.0,95967.0,0.25880665]
[1739319552106,0.01733227,95970.0,95967.0,0.25880665]
[1739319552312,0.01733227,95970.0,95967.0,0.10250365]
[1739319552872,0.01733227,95970.0,95967.0,0.10550365]
[1739319553095,0.01633227,95970.0,95967.0,0.10550365]
[1739319553272,0.01633227,95970.0,95967.0,0.26180665]
[1739319553473,0.001,95970.0,95967.0,0.26880665]
[1739319554062,0.156287,95977.0,95967.0,0.26180665]
[1739319554258,0.02197631,95978.0,95967.0,0.1056367]
[1739319554511,0.001,95970.0,95967.0,0.1106367]
[1739319554680,0.001,95970.0,95967.0,0.1136367]
[1739319554883,0.156289,95976.0,95967.0,0.1056367]
[1739319555091,0.156289,95976.0,95967.0,0.1026367]
[1739319555294,0.156289,95976.0,95967.0,0.1036367]
[1739319555494,0.15,95975.0,95967.0,0.1026367]
[1739319555865,0.15,95975.0,95967.0,0.1056367]
[1739319556066,0.15,95975.0,95967.0,0.1026367]
[1739319556262,0.15,95975.0,95967.0,0.2619397]
[1739319556467,0.02197646,95980.0,95967.0,0.30425163]
[1739319556668,0.208367,95985.0,95969.0,0.0785]
[1739319556871,0.208331,96001.0,95970.0,0.10250365]
[1739319557117,0.208375,95981.0,95970.0,0.10250365]
[1739319557295,0.156288,95977.0,95970.0,0.10250365]
[1739319557701,0.00022408,95972.0,95970.0,0.10250365]
[1739319558660,0.00022408,95972.0,95970.0,0.10350365]
[1739319558858,0.00022408,95972.0,95970.0,0.10250365]
[1739319559012,0.00022408,95972.0,95970.0,0.10550365]
[1739319559396,0.00022408,95972.0,95970.0,0.10654552]
[1739319559604,0.00022408,95972.0,95971.0,0.00104188]
[1739319559846,0.00022408,95972.0,95971.0,0.10354553]
[1739319560074,0.00022408,95972.0,95971.0,0.32960065]
[1739319561148,0.00022408,95972.0,95971.0,0.33260065]
[1739319561554,0.00122408,95972.0,95971.0,0.41710065]
[1739319561752,0.00122408,95972.0,95971.0,0.71621923]
[1739319563393,0.00122408,95972.0,95971.0,0.61371558]
[1739319565004,0.00122408,95972.0,95971.0,0.45741858]
[1739319566544,0.00122408,95972.0,95971.0,0.61371558]
[1739319566740,0.00122408,95972.0,95971.0,0.45741858]
[1739319567365,0.00122408,95972.0,95971.0,0.61371558]
[1739319568520,0.00122408,95972.0,95971.0,0.45741858]
[1739319571354,0.00122408,95972.0,95971.0,0.61371558]
[1739319572441,0.00122408,95972.0,95971.0,0.61071558]
[1739319572665,0.00122408,95972.0,95971.0,0.61171558]
[1739319572889,0.00222408,95972.0,95971.0,0.64137533]
[1739319573527,0.00122408,95972.0,95971.0,0.62937533]
[1739319573827,0.00122408,95972.0,95971.0,0.63737533]
[1739319574204,0.00222408,95972.0,95971.0,0.64437533]
[1739319574411,0.00222408,95972.0,95971.0,0.63737533]
[1739319574825,0.00222408,95972.0,95971.0,0.64437533]
[1739319575254,0.00122408,95972.0,95971.0,0.63737533]
[1739319575571,0.00122408,95972.0,95971.0,0.64437533]
[1739319575773,0.00022408,95972.0,95971.0,0.62937533]
[1739319576168,0.00122408,95972.0,95971.0,0.64437533]
[1739319576926,0.00122408,95972.0,95971.0,1.17927533]
[1739319578861,0.00122408,95972.0,95971.0,1.18927533]
[1739319581927,0.00122408,95972.0,95971.0,1.13927533]
[1739319582194,0.00122408,95972.0,95971.0,1.13938203]
[1739319588277,0.00122408,95972.0,95971.0,1.11638203]
[1739319588514,0.00122408,95972.0,95971.0,1.08872228]
[1739319588910,0.00122408,95972.0,95971.0,1.11172228]
[1739319590096,0.00122408,95972.0,95971.0,1.12172228]
[1739319591379,0.00122408,95972.0,95971.0,1.11472228]
[1739319591549,0.00122408,95972.0,95971.0,1.12172228]
[1739319591784,0.00222408,95972.0,95971.0,1.22422593]
[1739319592095,0.00122408,95972.0,95971.0,1.20922593]
[1739319592387,0.00122408,95972.0,95971.0,1.22422593]
[1739319599316,8e-08,95972.0,95971.0,1.37422593]
[1739319599543,8e-08,95972.0,95971.0,1.38422593]
[1739319600522,1.6e-07,95978.0,95977.0,0.02]
[1739319600721,1.6e-07,95978.0,95977.0,0.57653205]
[1739319600921,1.6e-07,95978.0,95977.0,0.57549065]
[1739319601771,1.6e-07,95978.0,95977.0,0.59049065]
[1739319602401,1.6e-07,95978.0,95977.0,0.59749065]
[1739319602613,1.6e-07,95978.0,95977.0,0.6999943]
[1739319602808,1.6e-07,95978.0,95977.0,0.6849943]
[1739319603033,1.6e-07,95978.0,95977.0,0.6999943]
[1739319603758,1.6e-07,95978.0,95977.0,0.7007543]
[1739319603943,1.6e-07,95978.0,95977.0,0.61692382]
[1739319604163,1.6e-07,95978.0,95977.0,0.59525065]
[1739319604343,1.6e-07,95978.0,95977.0,1.32676558]
[1739319604493,1.6e-07,95978.0,95977.0,1.13600558]
[1739319604702,1.6e-07,95978.0,95977.0,1.08780558]
[1739319604881,1.6e-07,95978.0,95977.0,1.11080558]
[1739319606602,1.6e-07,95978.0,95977.0,1.11091228]
[1739319607900,1.6e-07,95978.0,95977.0,1.03541228]
[1739319609219,1.6e-07,95978.0,95977.0,0.50051228]
[1739319611188,1.6e-07,95978.0,95977.0,0.32122528]
[1739319611689,1.6e-07,95978.0,95977.0,0.34422528]
[1739319613421,1.6e-07,95978.0,95977.0,0.32122528]
[1739319614237,1.6e-07,95978.0,95977.0,0.30622528]
[1739319614641,1.6e-07,95978.0,95977.0,0.30822528]
[1739319615099,1.6e-07,95978.0,95977.0,0.30422528]
[1739319615540,1.6e-07,95978.0,95977.0,0.31322528]
[1739319616959,1.6e-07,95978.0,95977.0,0.30422528]
[1739319617166,1.6e-07,95978.0,95977.0,0.29922528]
[1739319617370,1.6e-07,95978.0,95977.0,0.31322528]
[1739319617908,0.28258516,95978.0,95977.0,0.31322528]
[1739319618082,0.12630016,95978.0,95977.0,0.31322528]
[1739319619971,0.12630016,95978.0,95977.0,0.29922528]
[1739319620176,0.12630016,95978.0,95977.0,0.30422528]
[1739319620393,0.12630016,95978.0,95977.0,0.31322528]
[1739319621671,0.04850016,95978.0,95977.0,0.46951228]
[1739319622241,0.04850016,95978.0,95977.0,0.31322528]
[1739319622412,1.6e-07,95978.0,95977.0,0.31322528]
[1739319623214,1.6e-07,95978.0,95977.0,0.30822528]
[1739319623450,1.6e-07,95978.0,95977.0,0.46951228]
[1739319623769,1.6e-07,95978.0,95977.0,0.46051228]
[1739319624017,1.6e-07,95978.0,95977.0,0.55480905]
[1739319624648,1.6e-07,95978.0,95977.0,0.54580905]
[1739319624868,1.6e-07,95978.0,95977.0,0.46805818]
[1739319630062,1.6e-07,95978.0,95977.0,0.31177118]
[1739319630448,0.15000016,95978.0,95977.0,0.31177118]
[1739319630839,0.30628516,95978.0,95977.0,0.31177118]
[1739319631493,0.35528516,95978.0,95977.0,0.31177118]
[1739319631903,0.37474869,95978.0,95977.0,0.31177118]
[1739319632329,0.37474869,95978.0,95977.0,0.20672163]
[1739319632867,0.40265164,95978.0,95977.0,0.21172163]
[1739319633502,0.40265164,95978.0,95977.0,0.20172163]
[1739319633675,0.38318811,95978.0,95977.0,0.20172163]
[1739319633860,0.38318811,95978.0,95977.0,0.21172163]
[1739319636414,0.40266234,95978.0,95977.0,0.21172163]
[1739319637122,0.40266234,95978.0,95977.0,0.0151067]
[1739319641369,0.32575939,95978.0,95977.0,0.0151067]
[1739319648825,0.32575939,95978.0,95977.0,0.0051067]
[1739319649076,0.32575939,95978.0,95977.0,0.0141067]
[1739319649588,0.32575939,95978.0,95977.0,0.0091067]
[1739319650422,0.32575939,95978.0,95977.0,0.0141067]
[1739319652972,0.35693714,95978.0,95977.0,0.0141067]
[1739319660107,0.35693714,95978.0,95977.0,0.0091067]
[1739319660520,0.35693714,95978.0,95977.0,0.0141067]
[1739319660732,0.43973714,95978.0,95977.0,0.0141067]
[1739319660937,0.43973714,95978.0,95977.0,0.0051067]
[1739319661164,0.48553714,95978.0,95977.0,0.0051067]
[1739319661358,0.48553714,95978.0,95977.0,0.0141067]
[1739319661763,0.48553714,95978.0,95977.0,0.0051067]
[1739319662318,0.15,95977.0,95971.0,0.0001067]
[1739319662519,0.306295,95972.0,95971.0,0.0001067]
[1739319664001,0.09913205,95972.0,95971.0,0.0001067]
[1739319664204,0.25542705,95972.0,95971.0,0.0021067]
[1739319665035,0.30607903,95972.0,95971.0,0.0021067]
[1739319665244,0.30607903,95972.0,95971.0,0.0031067]
[1739319665800,0.30607903,95972.0,95971.0,0.0021067]
[1739319666266,0.45607903,95972.0,95971.0,0.0001067]
[1739319666410,0.45707903,95972.0,95971.0,0.0001067]
[1739319666803,0.45607903,95972.0,95971.0,0.0001067]
[1739319667001,0.45707903,95972.0,95971.0,0.0001067]
[1739319667813,0.45807903,95972.0,95971.0,0.0001067]
[1739319668386,0.45707903,95972.0,95971.0,0.0001067]
[1739319668567,0.45807903,95972.0,95971.0,0.0001067]
[1739319668741,0.47905433,95972.0,95971.0,0.0001067]
[1739319668906,0.47805433,95972.0,95971.0,0.0001067]
[1739319669109,0.52385433,95972.0,95971.0,0.0001067]
[1739319669356,0.58164566,95972.0,95971.0,0.0001067]
[1739319669567,0.156341,95944.0,95943.0,0.07900446]
[1739319670079,0.156351,95938.0,95933.0,0.16043811]
[1739319670286,0.09597743,95944.0,95935.0,0.10250365]
[1739319670489,0.156351,95938.0,95935.0,0.10250365]
[1739319670719,0.208464,95940.0,95935.0,0.10250365]
[1739319670935,0.15,95943.0,95922.0,0.0771]
[1739319671312,0.156355,95935.0,95934.0,0.19674805]
[1739319671951,0.306355,95935.0,95934.0,0.00013312]
[1739319672847,0.38639886,95935.0,95934.0,0.00913312]
[1739319673598,0.38739886,95935.0,95934.0,0.00913312]
[1739319674553,0.38739886,95935.0,95934.0,0.00013312]
[1739319674814,0.39039886,95935.0,95934.0,0.00013312]
[1739319675284,0.38739886,95935.0,95934.0,0.00013312]
[1739319675769,0.38939886,95935.0,95934.0,0.00013312]
[1739319675997,0.38839886,95935.0,95934.0,0.00013312]
[1739319676465,0.38839886,95935.0,95934.0,0.00023972]
[1739319678379,0.38639886,95935.0,95934.0,0.00023972]
[1739319678584,0.40638411,95935.0,95934.0,0.00023972]
[1739319679719,0.15,95934.0,95920.0,0.19205465]
[1739319679935,0.25002911,95935.0,95921.0,0.10250365]
[1739319679936,0.15,95929.0,95921.0,0.10250365]
[1739319680138,0.14639049,95930.0,95928.0,0.156367]
[1739319680287,0.08369164,95935.0,95933.0,0.156358]
[1739319680487,0.002,95935.0,95934.0,0.13609981]
[1739319680691,0.002,95935.0,95934.0,0.10250365]
[1739319681320,0.152,95935.0,95934.0,0.10250365]
[1739319681481,0.15,95935.0,95934.0,0.10250365]
[1739319682162,0.20044395,95935.0,95934.0,0.10250365]
[1739319682749,0.20244395,95935.0,95934.0,0.10250365]
[1739319683426,0.05244395,95935.0,95929.0,0.0771]
[1739319683643,0.156363,95931.0,95930.0,0.10250365]
[1739319685122,0.20680695,95931.0,95930.0,0.10250365]
[1739319685861,0.20680695,95931.0,95929.0,0.001]
[1739319686133,0.156371,95926.0,95924.0,0.0751]
[1739319686488,0.05044395,95931.0,95919.0,0.0751]
[1739319686693,0.15,95933.0,95919.0,0.0751]
[1739319686694,0.05044395,95925.0,95921.0,0.10250365]
[1739319686868,0.20681695,95925.0,95921.0,0.10250365]
[1739319687082,0.05044395,95925.0,95921.0,0.10250365]
[1739319688162,0.05044395,95925.0,95924.0,0.007]
[1739319688328,0.156372,95925.0,95924.0,0.007]
[1739319688513,0.208489,95928.0,95921.0,0.10250365]
[1739319688514,0.156377,95922.0,95921.0,0.10250365]
[1739319688692,0.156375,95923.0,95921.0,0.10250365]
[1739319689050,0.156375,95923.0,95921.0,0.11050365]
[1739319689541,0.05046769,95922.0,95921.0,0.11050365]
[1739319689997,0.05046769,95922.0,95921.0,0.10550365]
[1739319690200,0.156378,95921.0,95920.0,0.19218777]
[1739319690674,0.156378,95921.0,95920.0,0.00013312]
[1739319691396,0.369903,95921.0,95920.0,0.00013312]
[1739319692119,0.369903,95921.0,95920.0,0.01113312]
[1739319692597,0.369903,95921.0,95920.0,0.00013312]
[1739319692833,0.39452073,95921.0,95920.0,0.00113312]
[1739319693308,0.39452073,95921.0,95920.0,0.00613312]
[1739319693549,0.39452073,95921.0,95920.0,0.00113312]
[1739319693783,0.39452073,95921.0,95920.0,0.00213312]
[1739319694269,0.39452073,95921.0,95920.0,0.00113312]
[1739319694547,0.47502073,95921.0,95920.0,0.00113312]
[1739319695053,0.47502073,95921.0,95920.0,0.00013312]
[1739319695276,0.47502073,95921.0,95920.0,0.00213312]
[1739319695481,0.47502073,95921.0,95920.0,0.002058]
[1739319695659,0.49578942,95921.0,95920.0,5.8e-05]
[1739319696004,0.51050443,95921.0,95920.0,0.001058]